fUSD/lending_fUSD_20240319
["ID","MTS","AMOUNT","RATE_DAILY","PERIOD"]
[319506545,1710811840198,-762.0,0.00032385,2]
[319506547,1710811840208,-151.0,0.00032385,7]
[319506549,1710811840217,-151.0,0.00032385,7]
[319506551,1710811840227,-151.0,0.00032385,7]
[319506552,1710811840236,-252.610519,0.00032385,7]
[319506553,1710811840246,-151.0,0.00032385,7]
[319506554,1710811840256,-151.0,0.00032385,7]
[319506555,1710811840265,-151.0,0.00032385,7]
[319506556,1710811840275,-151.0,0.00032385,7]
[319506557,1710811840285,-151.0,0.00032385,7]
[319506558,1710811840294,-151.0,0.00032385,7]
[319506559,1710811840303,-151.0,0.00032385,7]
[319506560,1710811840313,-200.0,0.00032421,2]
[319506561,1710811840323,-800.0,0.00032421,8]
[319506562,1710811840333,-200.0,0.00032421,2]
[319506563,1710811840342,-500.0,0.00032421,2]
[319506564,1710811840352,-200.0,0.00032421,2]
[319506565,1710811840361,-1000.0,0.00032428,14]
[319506566,1710811840371,-500.0,0.00032572,7]
[319506567,1710811840385,-378.74302612,0.00032694,6]
[319506568,1710811840394,-766.0,0.00032705,2]
[319506569,1710811840404,-3238.0,0.00032705,2]
[319506570,1710811840413,-762.0,0.00032705,2]
[319506571,1710811840422,-151.11651377,0.00032751,2]
[319506572,1710811840431,-12354.4,0.000328,2]
[319506573,1710811840440,-995.8,0.000328,2]
[319506574,1710811840449,-377.168005,0.00032875,5]
[319506575,1710811840458,-154.0,0.00032876,2]
[319506576,1710811840468,-1000.0,0.00032876,2]
[319506577,1710811840477,-1000.0,0.00032876,2]
[319506578,1710811840487,-1000.0,0.00032876,2]
[319506579,1710811840497,-1000.0,0.00032876,2]
[319506580,1710811840507,-1000.0,0.00032876,2]
[319506581,1710811840516,-1000.0,0.00032876,2]
[319506582,1710811840526,-1000.0,0.00032876,2]
[319506583,1710811840536,-1000.0,0.00032876,2]
[319506584,1710811840545,-153.03733915,0.00032876,2]
[319506585,1710811840555,-150.0,0.00032877,2]
[319506586,1710811840564,-161.15,0.00032877,10]
[319506587,1710811840573,-7500.0,0.00032926,2]
[319506588,1710811840584,-300.0,0.00033,33]
[319506589,1710811840593,-2625.0,0.00033,5]
[319506590,1710811840602,-227.51831144,0.00033,2]
[319506591,1710811840617,-272.48168856,0.00033,2]
[319506592,1710811840626,-500.0,0.00033,2]
[319506593,1710811840640,-500.0,0.00033,2]
[319506594,1710811840649,-161.09769497,0.00033,2]
[319506595,1710811840704,-338.90230503,0.00033,2]
[319506596,1710811840714,-500.0,0.00033,2]
[319506597,1710811840723,-500.0,0.00033,2]
[319506598,1710811840732,-500.0,0.00033,2]
[319506599,1710811840741,-500.0,0.00033,2]
[319506600,1710811840751,-500.0,0.00033,2]
[319506601,1710811840761,-500.0,0.00033,2]
[319506602,1710811840770,-500.0,0.00033,2]
[319506603,1710811840779,-500.0,0.00033,2]
[319506604,1710811840789,-500.0,0.00033,2]
[319506605,1710811840798,-500.0,0.00033,2]
[319506606,1710811840808,-500.0,0.00033,2]
[319506607,1710811840817,-500.0,0.00033,2]
[319506608,1710811840826,-500.0,0.00033,2]
[319506609,1710811840835,-500.0,0.00033,2]
[319506610,1710811840844,-500.0,0.00033,2]
[319506611,1710811840854,-500.0,0.00033,2]
[319506612,1710811840862,-500.0,0.00033,2]
[319506613,1710811840872,-239.28,0.00033,2]
[319506614,1710811840885,-1000.0,0.00033,4]
[319506615,1710811840895,-1000.0,0.00033,4]
[319506616,1710811840904,-1000.0,0.00033,4]
[319506617,1710811840914,-1000.0,0.00033,4]
[319506618,1710811840924,-169.2,0.00033012,120]
[319506619,1710811840933,-150.0,0.00033022,4]
[319506620,1710811840942,-766.0,0.00033026,2]
[319506621,1710811840952,-649.08542458,0.00033026,2]
[319506622,1710811841027,-974.6480007,0.00033026,2]
[319506623,1710811841038,-1614.26657472,0.00033026,2]
[319506624,1710811841048,-762.0,0.00033026,2]
[319506625,1710811841061,-152.29531727,0.00033027,7]
[319506626,1710811841070,-180.13,0.00033041,2]
[319506627,1710811841081,-170.0,0.00033226,2]
[319506628,1710811841094,-3000.0,0.000333,7]
[319506629,1710811841104,-1057.59607607,0.00033452,2]
[319506630,1710811841113,-1224.35634363,0.00033452,2]
[319506631,1710811841123,-718.09819,0.0003359,2]
[319506632,1710811841135,-372.67,0.00033642,2]
[319506633,1710811841145,-5410.98094996,0.00033773,41]
[319506634,1710811841173,-1369.01905004,0.00033773,41]
[319506635,1710811841182,-500.0,0.0003379,7]
[319506636,1710811841191,-6946.81788458,0.00033816,6]
[319506637,1710811841200,-151.32494326,0.00033898,7]
[319506638,1710811841210,-500.0,0.00034,7]
[319506639,1710811841219,-500.0,0.00034,7]
[319506640,1710811841229,-500.0,0.00034,7]
[319506641,1710811841238,-500.0,0.00034,7]
[319506642,1710811841248,-500.0,0.00034,7]
[319506643,1710811841258,-500.0,0.00034,7]
[319506644,1710811841268,-500.0,0.00034,7]
[319506645,1710811841278,-500.0,0.00034,7]
[319506646,1710811841287,-500.0,0.00034,7]
[319506647,1710811841297,-500.0,0.00034,7]
[319506648,1710811841307,-500.0,0.00034,7]
[319506649,1710811841317,-500.0,0.00034,7]
[319506650,1710811841326,-500.0,0.00034,7]
[319506651,1710811841336,-500.0,0.00034,7]
[319506652,1710811841345,-402.62171636,0.00034,7]
[319506653,1710811841358,-97.37828364,0.00034,7]
[319506654,1710811841368,-500.0,0.00034,7]
[319506655,1710811841379,-500.0,0.00034,7]
[319506656,1710811841391,-500.0,0.00034,7]
[319506657,1710811841401,-500.0,0.00034,7]
[319506658,1710811841411,-500.0,0.00034,7]
[319506659,1710811841420,-500.0,0.00034,7]
[319506660,1710811841429,-500.0,0.00034,7]
[319506661,1710811841439,-500.0,0.00034,7]
[319506662,1710811841449,-500.0,0.00034,7]
[319506663,1710811841458,-500.0,0.00034,7]
[319506664,1710811841468,-500.0,0.00034,7]
[319506665,1710811841478,-1000.0,0.00034,7]
[319506666,1710811841487,-1000.0,0.00034,7]
[319506667,1710811841497,-995.8,0.0003401,2]
[319506668,1710811841507,-151.11651377,0.00034075,2]
[319506669,1710811841517,-160.0,0.00034109,2]
[319506670,1710811841528,-500.0,0.000343,7]
[319506671,1710811841537,-500.0,0.000343,7]
[319506672,1710811841547,-500.0,0.000343,7]
[319506673,1710811841557,-500.0,0.000343,7]
[319506674,1710811841566,-500.0,0.000343,7]
[319506675,1710811841577,-500.0,0.000343,7]
[319506676,1710811841587,-500.0,0.000343,7]
[319506677,1710811841597,-500.0,0.000343,7]
[319506678,1710811841607,-500.0,0.000343,7]
[319506679,1710811841617,-500.0,0.000343,7]
[319506680,1710811841626,-500.0,0.000343,7]
[319506681,1710811841641,-500.0,0.000343,7]
[319506682,1710811841650,-500.0,0.000343,7]
[319506683,1710811841659,-500.0,0.000343,7]
[319506684,1710811841668,-500.0,0.000343,7]
[319506685,1710811841678,-500.0,0.000343,7]
[319506686,1710811841687,-500.0,0.000343,7]
[319506687,1710811841697,-500.0,0.000343,7]
[319506688,1710811841706,-329.70647047,0.000343,7]
[319506689,1710811841718,-170.29352953,0.000343,7]
[319506690,1710811841727,-500.0,0.000343,7]
[319506691,1710811841736,-500.0,0.000343,7]
[319506692,1710811841746,-500.0,0.000343,7]
[319506693,1710811841756,-500.0,0.000343,7]
[319506694,1710811841765,-500.0,0.000343,7]
[319506695,1710811841775,-500.0,0.000343,7]
[319506696,1710811841784,-150.0,0.00034548,10]
[319506697,1710811841793,-2887.58657073,0.000348,2]
[319506698,1710811841803,-155.3,0.000348,2]
[319506699,1710811841812,-800.0,0.00034935,10]
[319506700,1710811841822,-300.0,0.00035,35]
[319506701,1710811841831,-1000.0,0.00035,7]
[319506702,1710811841841,-1000.0,0.00035,7]
[319506703,1710811841850,-260.60858286,0.00035,15]
[319506704,1710811841860,-500.0,0.00035008,7]
[319506705,1710811841869,-995.8,0.0003522,2]
[319506706,1710811841882,-1000.0,0.000353,2]
[319506707,1710811842065,-151.11651377,0.00035398,2]
[319506708,1710811842075,-164.0,0.00035441,2]
[319506709,1710811842086,-161.15,0.00035616,10]
[319506710,1710811842096,-500.0,0.0003566,3]
[319506711,1710811842106,-500.0,0.0003566,3]
[319506712,1710811842116,-500.0,0.0003566,3]
[319506713,1710811842125,-500.0,0.0003566,3]
[319506714,1710811842138,-500.0,0.0003566,3]
[319506715,1710811842148,-378.74302612,0.00035735,7]
[319506716,1710811842158,-166.66666667,0.00035773,7]
[319506717,1710811842167,-170.05,0.00035805,2]
[319506718,1710811842177,-372.67,0.00035906,2]
[319506719,1710811842186,-1000.0,0.00036,14]
[319506720,1710811842196,-718.0982,0.0003609,2]
[319506721,1710811842206,-6946.81788458,0.00036159,9]
[319506722,1710811842215,-200.0,0.00036192,10]
[319506723,1710811842224,-500.0,0.00036225,7]
[319506724,1710811842233,-169.2,0.00036314,120]
[319506725,1710811842242,-995.8,0.0003643,2]
[319506726,1710811842253,-151.20983331,0.0003668,7]
[319506727,1710811842263,-151.11651377,0.00036722,2]
[319506728,1710811842272,-1057.59607607,0.00036741,2]
[319506729,1710811842281,-155.47660259,0.00036741,2]
[319506753,1710811842814,-795.6,0.00036741,2]
[319506754,1710811842826,-273.27974104,0.00036741,2]
[319506755,1710811842836,-152.29531727,0.00036742,7]
[319506756,1710811842845,-152.52034594,0.000369,2]
[319506757,1710811842855,-152.52034581,0.000369,2]
[319506758,1710811842865,-152.52034581,0.000369,2]
[319506759,1710811842875,-152.52034581,0.000369,2]
[319506760,1710811842891,-152.52034581,0.000369,2]
[319506761,1710811842900,-152.52034581,0.000369,2]
[319506762,1710811842910,-152.52034581,0.000369,2]
[319506763,1710811842919,-152.52034581,0.000369,2]
[319506764,1710811842928,-152.52034581,0.000369,2]
[319506765,1710811842937,-152.52034581,0.000369,2]
[319506766,1710811842946,-300.0,0.00037,37]
[319506767,1710811842955,-1000.0,0.00037,14]
[319506768,1710811842965,-233.42809909,0.0003705,2]
[319506769,1710811842974,-1459.82201942,0.0003731,61]
[319506770,1710811842986,-285.82080771,0.0003731,61]
[319506771,1710811843007,-5600.65717287,0.0003731,61]
[319506772,1710811843016,-500.0,0.00037443,7]
[319506773,1710811843026,-800.0,0.00037449,10]
[319506774,1710811843036,-189.34447314,0.00037546,10]
[319506775,1710811843045,-995.8,0.0003764,2]
[319506776,1710811843059,-164.0,0.00037656,2]
[319506777,1710811843068,-153.333336,0.00037889,7]
[319506778,1710811843077,-166.253589,0.00037889,7]
[319506779,1710811843086,-186.161045,0.00037889,7]
[319506780,1710811843097,-185.165177,0.00037889,7]
[319506781,1710811843109,-164.0,0.00037973,2]
[319506782,1710811843118,-3279.81762681,0.00038,120]
[319506783,1710811843128,-1000.0,0.00038,14]
[319506784,1710811843143,-151.11651377,0.00038045,2]
[319506785,1710811843153,-150.0,0.0003805,2]
[319506786,1710811843162,-372.67,0.00038169,2]
[319506787,1710811843172,-801.0,0.00038186,28]
[319506788,1710811843181,-161.15,0.00038356,10]
[319506789,1710811843191,-6946.81788458,0.00038502,12]
[319506790,1710811843200,-718.09819,0.0003859,2]
[319506791,1710811843210,-500.0,0.00038661,7]
[319506792,1710811843220,-1190.01570943,0.00038765,2]
[319506793,1710811843229,-378.74302612,0.00038776,9]
[319506794,1710811843240,-50809.38878371,0.0003878,8]
[319506795,1710811843249,-151.0,0.0003878,7]
[319506796,1710811843258,-151.0,0.0003878,14]
[319506797,1710811843268,-151.0,0.0003878,14]
[319506798,1710811843277,-195.80416,0.0003878,14]
[319506799,1710811843287,-151.0,0.0003878,14]
[319506800,1710811843296,-151.0,0.0003878,14]
[319506801,1710811843305,-160.006172,0.0003878,14]
[319506802,1710811843316,-160.006172,0.0003878,14]
[319506803,1710811843325,-340.740116,0.0003878,14]
[319506804,1710811843335,-340.740116,0.0003878,14]
[319506805,1710811843344,-550.209218,0.0003878,14]
[319506806,1710811843354,-151.0,0.0003878,14]
[319506807,1710811843364,-550.209218,0.0003878,14]
[319506808,1710811843373,-197.738849,0.0003878,14]
[319506809,1710811843387,-197.738849,0.0003878,14]
[319506810,1710811843396,-151.0,0.0003878,14]
[319506811,1710811843406,-151.0,0.0003878,14]
[319506812,1710811843415,-151.0,0.0003878,14]
[319506813,1710811843425,-151.0,0.0003878,14]
[319506814,1710811843434,-157.765705,0.0003878,14]
[319506815,1710811843443,-151.0,0.0003878,14]
[319506816,1710811843453,-157.765705,0.0003878,14]
[319506817,1710811843462,-151.0,0.0003878,14]
[319506818,1710811843471,-1000.0,0.00038805,2]
[319506819,1710811843481,-995.8,0.0003885,2]
[319506820,1710811843490,-5777.45338817,0.000389,15]
[319506821,1710811843499,-151.0,0.000389,14]
[319506822,1710811843508,-539.600165,0.000389,14]
[319506823,1710811843518,-539.600165,0.000389,14]
[319506824,1710811843527,-497.431469,0.000389,14]
[319506825,1710811843536,-497.431469,0.000389,14]
[319506826,1710811843545,-151.0,0.000389,14]
[319506827,1710811843555,-152.982764,0.000389,14]
[319506828,1710811843564,-53128.00095442,0.0003897,2]
[319506829,1710811843573,-151.0,0.0003897,14]
[319506830,1710811843582,-238.45559,0.0003897,14]
[319506831,1710811843592,-151.0,0.0003897,14]
[319506832,1710811843600,-151.0,0.0003897,14]
[319506833,1710811843610,-151.0,0.0003897,14]
[319506834,1710811843619,-462.90720022,0.00038998,30]
[319506835,1710811843631,-801.0,0.00038999,28]
[319506836,1710811843641,-300.0,0.00039,39]
[319506837,1710811843650,-171472.4193832,0.00039,63]
[319506838,1710811843659,-151.0,0.00039,14]
[319506839,1710811843669,-150.0,0.00039,2]
[319506840,1710811843678,-155.0,0.00039,2]
[319506841,1710811843687,-539.600165,0.00039,14]
[319506842,1710811843696,-539.600165,0.00039,14]
[319506843,1710811843705,-497.431469,0.00039,14]
[319506844,1710811843714,-497.431469,0.00039,14]
[319506845,1710811843723,-151.0,0.00039,14]
[319506846,1710811843733,-151.0,0.00039,7]
[319506847,1710811843742,-1000.0,0.00039,14]
[319506848,1710811843751,-1000.0,0.00039,14]
[319506849,1710811843760,-151.0,0.00039,14]
[319506850,1710811843769,-151.0,0.00039,14]
[319506851,1710811843778,-151.0,0.00039,14]
[319506852,1710811843788,-151.0,0.00039,14]
[319506853,1710811843798,-160.006172,0.00039,14]
[319506854,1710811843808,-160.006172,0.00039,14]
[319506855,1710811843817,-340.740116,0.00039,14]
[319506856,1710811843827,-340.740116,0.00039,14]
[319506857,1710811843836,-550.209218,0.00039,14]
[319506858,1710811843845,-151.0,0.00039,14]
[319506859,1710811843854,-550.209218,0.00039,14]
[319506860,1710811843863,-197.738849,0.00039,14]
[319506861,1710811843873,-197.738849,0.00039,14]
[319506862,1710811843889,-151.0,0.00039,14]
[319506863,1710811843898,-151.0,0.00039,14]
[319506864,1710811843907,-151.0,0.00039,14]
[319506865,1710811843916,-2087.0,0.00039,4]
[319506866,1710811843926,-151.0,0.00039,14]
[319506867,1710811843935,-157.765705,0.00039,14]
[319506868,1710811843945,-2659.0,0.00039,4]
[319506869,1710811843955,-151.0,0.00039,14]
[319506870,1710811843964,-557.0,0.00039,4]
[319506871,1710811843974,-157.765705,0.00039,14]
[319506872,1710811843983,-151.0,0.00039,14]
[319506873,1710811843993,-150.0,0.0003905,2]
[319506874,1710811844002,-547.67725656,0.0003934,7]
[319506875,1710811844695,-460.10966501,0.0003934,7]
[319506876,1710811844706,-13347.58328231,0.0003934,7]
[319506877,1710811844764,-151.0,0.00029205,7]
[319506878,1710811844773,-1401.07494528,0.0003934,7]
[319506879,1710811844785,-235400.80443086,0.0003934,7]
[319506880,1710811844794,-184.159777,0.0003934,14]
[319506881,1710811844803,-151.0,0.0003934,14]
[319506882,1710811844812,-151.0,0.0003934,14]
[319506883,1710811844822,-151.0,0.0003934,14]
[319506884,1710811844831,-151.0,0.0003934,14]
[319506885,1710811844840,-539.600165,0.0003934,14]
[319506886,1710811844849,-539.600165,0.0003934,14]
[319506887,1710811844858,-497.431469,0.0003934,14]
[319506888,1710811844867,-497.431469,0.0003934,14]
[319506889,1710811844876,-151.0,0.0003934,14]
[319506890,1710811844891,-151.0,0.0003934,7]
[319506891,1710811844901,-151.0,0.0003934,14]
[319506892,1710811844910,-255.701783,0.0003934,14]
[319506893,1710811844919,-151.0,0.0003934,14]
[319506894,1710811844929,-151.0,0.0003934,14]
[319506895,1710811844938,-160.006172,0.0003934,14]
[319506896,1710811844947,-160.006172,0.0003934,14]
[319506897,1710811844956,-340.740116,0.0003934,14]
[319506898,1710811844966,-340.740116,0.0003934,14]
[319506899,1710811844975,-550.209218,0.0003934,14]
[319506900,1710811844984,-151.0,0.0003934,14]
[319506901,1710811844993,-550.209218,0.0003934,14]
[319506902,1710811845003,-197.738849,0.0003934,14]
[319506903,1710811845012,-197.738849,0.0003934,14]
[319506904,1710811845021,-151.0,0.0003934,14]
[319506905,1710811845030,-151.0,0.0003934,14]
[319506906,1710811845040,-151.0,0.0003934,14]
[319506907,1710811845049,-157.765705,0.0003934,14]
[319506908,1710811845064,-151.0,0.0003934,14]
[319506909,1710811845073,-157.765705,0.0003934,14]
[319506910,1710811845082,-151.11651377,0.00039369,4]
[319506911,1710811845091,-151.031909,0.00039498,20]
[319506912,1710811845101,-23666.16270877,0.00039498,20]
[319506913,1710811845110,-17777.05473601,0.000395,20]
[319506914,1710811845119,-169.2,0.00039615,120]
[319506915,1710811845130,-180.13,0.00039649,2]
[319506916,1710811845141,-150.0,0.0003969,2]
[319506917,1710811845151,-10117.15244648,0.00039695,2]
[319506918,1710811845160,-409.72680051,0.00039751,4]
[319506919,1710811845171,-801.0,0.00039811,28]
[319506920,1710811845180,-164.0,0.00039871,14]
[319506921,1710811845190,-500.0,0.00039878,7]
[319506922,1710811845199,-161.06770922,0.00039883,3]
[319506923,1710811845208,-371.41124011,0.000399,2]
[319506924,1710811845218,-14918.35553675,0.000399,2]
[319506925,1710811845227,-566.31707294,0.000399,2]
[319506926,1710811845236,-899.14607009,0.000399,2]
[319506927,1710811845246,-1426.35884504,0.000399,2]
[319506928,1710811845255,-193.07832709,0.000399,8]
[319506929,1710811845265,-1376.79532728,0.000399,2]
[319506930,1710811845275,-150.0,0.00039922,2]
[319506931,1710811845284,-295.8175762,0.00039928,2]
[319506932,1710811845294,-200.0,0.00039963,15]
[319506933,1710811845304,-800.0,0.00039963,15]
[319506935,1710811845313,-200.0,0.00039963,20]
[319506936,1710811845323,-33437.2132398,0.0003999,2]
[319506938,1710811845336,-1174.29325222,0.0003999,2]
[319506940,1710811845346,-157.08465437,0.0003999,2]
[319506941,1710811845356,-815.94017691,0.00039996,2]
[319506942,1710811845365,-1000.0,0.00039999,30]
[319506943,1710811845375,-265.14790037,0.0004,120]
[319506947,1710811845457,-2002.30495188,0.0004,120]
[319506948,1710811845481,-1033.3432318,0.0004,120]
[319506952,1710811845506,-6699.20391595,0.0004,120]
[319506955,1710811845515,-1657.26072468,0.0004,4]
[319506958,1710811845525,-500000.0,0.0004,4]
[319506959,1710811845535,-20021.53,0.0004,120]
[319506961,1710811845545,-1628.8,0.0004,18]
[319506963,1710811845554,-1700.1,0.0004,18]
[319506966,1710811845564,-504577.0,0.0004,10]
[319506969,1710811845574,-2110.0,0.0004,15]
[319506971,1710811845583,-14000.0,0.0004,120]
[319506972,1710811845593,-10000.0,0.0004,120]
[319506973,1710811845602,-10000.0,0.0004,120]
[319506974,1710811845612,-15000.0,0.0004,120]
[319506975,1710811845622,-25000.0,0.0004,120]
[319506976,1710811845632,-10000.0,0.0004,120]
[319506977,1710811845642,-10000.0,0.0004,120]
[319506978,1710811845651,-20000.0,0.0004,120]
[319506979,1710811845661,-20000.99,0.0004,120]
[319506980,1710811845670,-20000.0,0.0004,120]
[319506981,1710811845679,-20000.0,0.0004,120]
[319506982,1710811845688,-151.0,0.0004,14]
[319506983,1710811845697,-275.893622,0.0004,14]
[319506984,1710811845706,-151.0,0.0004,14]
[319506985,1710811845715,-151.0,0.0004,14]
[319506986,1710811845725,-151.0,0.0004,14]
[319506987,1710811845734,-151.0,0.0004,14]
[319506988,1710811845743,-539.600165,0.0004,14]
[319506989,1710811845752,-539.600165,0.0004,14]
[319506990,1710811845761,-539.600165,0.0004,14]
[319506991,1710811845771,-539.600165,0.0004,14]
[319506992,1710811845781,-497.431469,0.0004,14]
[319506993,1710811845790,-497.431469,0.0004,14]
[319506994,1710811845800,-497.431469,0.0004,14]
[319506995,1710811845809,-497.431469,0.0004,14]
[319506996,1710811845818,-151.0,0.0004,14]
[319506997,1710811845827,-262.673575,0.0004,14]
[319506998,1710811845837,-151.0,0.0004,7]
[319506999,1710811845846,-151.0,0.0004,7]
[319507000,1710811845855,-1000.0,0.0004,14]
[319507001,1710811845865,-1000.0,0.0004,14]
[319507002,1710811845874,-151.0,0.0004,14]
[319507003,1710811845888,-151.0,0.0004,14]
[319507004,1710811845897,-151.0,0.0004,14]
[319507005,1710811845906,-151.0,0.0004,14]
[319507006,1710811845916,-151.0,0.0004,14]
[319507007,1710811845925,-171.85244,0.0004,14]
[319507008,1710811845935,-160.006172,0.0004,14]
[319507009,1710811845945,-160.006172,0.0004,14]
[319507010,1710811845955,-160.006172,0.0004,14]
[319507011,1710811845964,-160.006172,0.0004,14]
[319507012,1710811845974,-340.740116,0.0004,14]
[319507013,1710811845983,-340.740116,0.0004,14]
[319507014,1710811845993,-340.740116,0.0004,14]
[319507015,1710811846003,-340.740116,0.0004,14]
[319507016,1710811846012,-550.209218,0.0004,14]
[319507017,1710811846021,-550.209218,0.0004,14]
[319507018,1710811846030,-151.0,0.0004,14]
[319507019,1710811846039,-251.913864,0.0004,14]
[319507020,1710811846048,-550.209218,0.0004,14]
[319507021,1710811846058,-550.209218,0.0004,14]
[319507022,1710811846067,-197.738849,0.0004,14]
[319507023,1710811846076,-197.738849,0.0004,14]
[319507024,1710811846089,-197.738849,0.0004,14]
[319507026,1710811846099,-197.738849,0.0004,14]
[319507028,1710811846108,-151.0,0.0004,14]
[319507029,1710811846117,-151.0,0.0004,14]
[319507030,1710811846127,-191.120568,0.0004,14]
[319507031,1710811846140,-2087.0,0.0004,7]
[319507032,1710811846150,-245.0,0.0004,14]
[319507033,1710811846159,-2659.0,0.0004,7]
[319507034,1710811846169,-157.765705,0.0004,14]
[319507035,1710811846179,-157.765705,0.0004,14]
[319507036,1710811846189,-151.0,0.0004,14]
[319507037,1710811846198,-151.0,0.0004,14]
[319507038,1710811846207,-556.0,0.0004,7]
[319507039,1710811846217,-157.765705,0.0004,14]
[319507040,1710811846226,-157.765705,0.0004,14]
[319507041,1710811846235,-838.0,0.0004,7]
[319507042,1710811846244,-694.0,0.0004,7]
[319507043,1710811846254,-776.0,0.0004,7]
[319507044,1710811846264,-539.600165,0.00040007,14]
[319507045,1710811846274,-539.600165,0.00040007,14]
[319507046,1710811846284,-497.431469,0.00040007,14]
[319507047,1710811846294,-497.431469,0.00040007,14]
[319507048,1710811846303,-151.0,0.00040007,7]
[319507049,1710811846313,-749.7343797,0.00040007,2]
[319507050,1710811846322,-344.2666167,0.00040007,2]
[319507051,1710811846331,-151.0,0.00040007,14]
[319507052,1710811846340,-160.006172,0.00040007,14]
[319507053,1710811846351,-160.006172,0.00040007,14]
[319507054,1710811846361,-340.740116,0.00040007,14]
[319507055,1710811846370,-340.740116,0.00040007,14]
[319507056,1710811846384,-550.209218,0.00040007,14]
[319507057,1710811846394,-550.209218,0.00040007,14]
[319507058,1710811846403,-329.8831274,0.00040007,2]
[319507059,1710811846413,-197.738849,0.00040007,14]
[319507060,1710811846422,-197.738849,0.00040007,14]
[319507061,1710811846432,-223.607626,0.00040007,14]
[319507062,1710811846441,-157.765705,0.00040007,14]
[319507063,1710811846452,-151.0,0.00040007,14]
[319507064,1710811846461,-157.765705,0.00040007,14]
[319507065,1710811846471,-22228.1739808,0.00040023,2]
[319507066,1710811846481,-1057.59607607,0.00040031,2]
[319507067,1710811846491,-1224.35634363,0.00040031,2]
[319507068,1710811846500,-150.0,0.0004005,2]
[319507069,1710811846511,-995.8,0.0004006,2]
[319507070,1710811846521,-2000.0,0.00040085,5]
[319507071,1710811846532,-2000.0,0.00040085,5]
[319507072,1710811846543,-30000.0,0.000401,60]
[319507073,1710811846555,-151.0,0.000401,14]
[319507074,1710811846566,-151.0,0.000401,14]
[319507075,1710811846576,-220.05,0.000402,15]
[319507076,1710811846587,-1000.0,0.000402,15]
[319507077,1710811846597,-215.0,0.0004028,2]
[319507078,1710811846607,-204.0,0.0004028,2]
[319507079,1710811846616,-150.0,0.00040283,2]
[319507080,1710811846626,-36922.37548369,0.00040296,60]
[319507081,1710811846640,-6473.17336813,0.00040296,4]
[319507082,1710811846650,-1820.49474091,0.00040296,10]
[319507083,1710811846660,-254.86883431,0.00040296,30]
[319507084,1710811846670,-212.4714875,0.00040296,14]
[319507085,1710811846679,-540.05442891,0.00040296,4]
[319507086,1710811846689,-2363.40045214,0.00040296,120]
[319507087,1710811846698,-155.0,0.00040296,4]
[319507088,1710811846707,-214.64855218,0.00040296,4]
[319507089,1710811846716,-872.1945429,0.00040296,15]
[319507090,1710811846725,-675.99731878,0.00040296,36]
[319507091,1710811846734,-7513.09869582,0.00040296,4]
[319507092,1710811846743,-174360.1936318,0.00040335,7]